{"text_format":"1","workbook":"xlsx","n_sheets":11,"sheets":["الادخال","خطاب الرفع","مشهد المسلتزمات","مشهد الرواتب","نموذج 2","الحضور و الانصراف","الابلاغ عن الوخز","رفع الكميات","الكميات","محضر الاستلام","معالجة"],"not_rendered":{"charts":0,"images":2,"macros":1,"external_links":1,"defined_names":4,"comments":0,"pivot_tables":0},"unopened":[],"bounds":{"document_bytes":16777216,"sheet_cells":100000,"rows_first":2000,"rows_last":500,"rows_between":2000,"halvings":0,"cell_chars":16384,"cell_head_chars":4096},"cells_cut":0,"cells_raw":0,"read":"whole","date_system":"1900"}

{"sheet":"الادخال","index":0,"n_rows":36,"n_cols":30,"rows_kept":36,"cut":false,"hidden":false,"merged":[[34,11,34,13],[35,2,35,10],[26,2,26,10],[27,2,27,10],[28,2,28,10],[29,2,29,10],[30,2,30,10],[31,2,31,10],[32,2,32,10],[33,2,33,10],[34,2,34,10],[9,29,9,31],[24,11,24,19],[35,11,35,13],[26,11,26,13],[27,11,27,13],[28,11,28,13],[29,11,29,13],[30,11,30,13],[26,21,26,29],[27,21,27,29],[28,21,28,29],[29,21,29,29],[30,21,30,29],[31,21,31,29],[25,21,25,29],[33,11,33,13],[2,24,2,31],[3,24,3,31],[4,24,4,31],[31,11,31,13],[32,11,32,13],[24,21,24,29],[23,23,23,27],[5,1,5,12],[6,1,6,12],[9,1,9,5],[9,7,9,10],[9,20,9,22],[9,23,9,24],[23,11,23,19],[17,11,17,23],[14,10,14,22],[1,1,1,12],[1,13,6,22],[2,1,2,12],[3,1,3,12],[4,1,4,12],[14,1,14,8],[17,1,17,8],[20,13,20,18],[20,1,20,8],[9,12,9,15]]}
[]
[null,"المملكة العربية السعودية",null,null,null,"المملكة العربية السعودية",null,null,null,"المملكة العربية السعودية"]
[null,"وزارة الصحة",null,null,null,"وزارة الصحة",null,null,null,"وزارة الصحة",null,null,null,null,null,null,null,null,null,null,null,null,null,null,"الرقم :"]
[null,"المديرية العامة للشئون الصحية بمنطقة جازان",null,null,null,"المديرية العامة للشئون الصحية بمنطقة جازان",null,null,null,"المديرية العامة للشئون الصحية بمنطقة جازان",null,null,null,null,null,null,null,null,null,null,null,null,null,null,"تاريخ"]
[null,"مستشفى احد المسارحة العام",null,null,null,"مستشفى احد المسارحة العام",null,null,null,"مستشفى احد المسارحة العام",null,null,null,null,null,null,null,null,null,null,null,null,null,null,"المرفقات"]
[null,"برنامج التخلص الامن من النفايات الطبية",null,null,null,"الخدمة الاجتماعية الطبية",null,null,null,"الخدمة الاجتماعية الطبية"]
[]
[]
[]
[null,"وذلك خلال شهر",null,null,null,null,")","ابريل",null,null,null,"(","للفترة من :",null,null,null,1,"/",4,"/","2019م",null,null,"حتى:",null,30,"/",4,"/","2019م"]
[]
[]
[]
[]
[null,"اسم المستشفى",null,null,null,null,null,null,null,null,"مدير مستشفى احد المسارحة العام"]
[]
[]
[null,"اسم مدير المستشفى",null,null,null,null,null,null,null,null,null,"أ/محمد بن عمران صفحي "]
[]
[]
[null,"تاريخ المحضر",null,null,null,null,null,null,null,null,null,null,null,"أبريل 2019م"]
[]
[]
[null,null,null,null,null,null,null,null,null,null,null,"مسئول برنامج النفايات الطبية",null,null,null,null,null,null,null,null,null,null,null,"العماله"]
[null,null,null,null,null,null,null,null,null,null,null,"حسين صفحي ",null,null,null,null,null,null,null,null,1,"هدى كريري"]
[null,null,null,null,null,null,null,null,null,null,null,null,null,null,null,null,null,null,null,null,2,"مؤمن مياة"]
[null,null,"أكياس صفراء 10 جالون",null,null,null,null,null,null,null,null,400,null,null,null,null,null,null,null,null,3,"مشاهبنار مينو"]
[null,null,"أكياس حمراء 10 جالون","أكياس حمراء 10 جالون","أكياس حمراء 10 جالون","أكياس حمراء 10 جالون","أكياس حمراء 10 جالون","أكياس حمراء 10 جالون","أكياس حمراء 10 جالون",null,null,50,null,null,null,null,null,null,null,null,4]
[null,null,"أكياس صفراء 30 جالون","أكياس صفراء 30 جالون","أكياس صفراء 30 جالون","أكياس صفراء 30 جالون","أكياس صفراء 30 جالون","أكياس صفراء 30 جالون","أكياس صفراء 30 جالون",null,null,600,null,null,null,null,null,null,null,null,5]
[null,null,"أكياس حمراء 30 جالون","أكياس حمراء 30 جالون","أكياس حمراء 30 جالون","أكياس حمراء 30 جالون","أكياس حمراء 30 جالون","أكياس حمراء 30 جالون","أكياس حمراء 30 جالون",null,null,50,null,null,null,null,null,null,null,null,6]
[null,null,"أكياس صفراء 50 جالون","أكياس صفراء 60 جالون","أكياس صفراء 60 جالون","أكياس صفراء 60 جالون","أكياس صفراء 60 جالون","أكياس صفراء 60 جالون","أكياس صفراء 60 جالون",null,null,700,null,null,null,null,null,null,null,null,7]
[null,null,"أكياس حمراء 50 جالون","أكياس حمراء 50 جالون","أكياس حمراء 50 جالون","أكياس حمراء 50 جالون","أكياس حمراء 50 جالون","أكياس حمراء 50 جالون","أكياس حمراء 50 جالون",null,null,100,null,null,null,null,null,null,null,null,8]
[null,null,"حاويات حادة 5 لتر","حاويات حادة 5 لتر","حاويات حادة 5 لتر","حاويات حادة 5 لتر","حاويات حادة 5 لتر","حاويات حادة 5 لتر","حاويات حادة 5 لتر",null,null,30]
[null,null,"حاويات حادة 13 لتر","حاويات حادة 13 لتر","حاويات حادة 13 لتر","حاويات حادة 13 لتر","حاويات حادة 13 لتر","حاويات حادة 13 لتر","حاويات حادة 13 لتر",null,null,75]
[null,null,"حاويات حادة 21 لتر","حاويات حادة 21 لتر","حاويات حادة 21 لتر","حاويات حادة 21 لتر","حاويات حادة 21 لتر","حاويات حادة 21 لتر","حاويات حادة 21 لتر",null,null,75]
[null,null,"حاوية الزئبق","حاوية الزئبق","حاوية الزئبق","حاوية الزئبق","حاوية الزئبق","حاوية الزئبق","حاوية الزئبق",null,null,4]

{"sheet":"خطاب الرفع","index":1,"n_rows":23,"n_cols":30,"rows_kept":23,"cut":false,"hidden":false,"merged":[[5,1,5,12],[6,1,6,12],[14,1,14,3],[9,1,9,24],[12,1,12,26],[11,1,11,30],[13,1,13,25],[10,1,10,17],[14,4,14,17],[14,18,14,23],[3,24,3,26],[4,24,4,26],[1,1,1,12],[2,1,2,12],[3,1,3,12],[4,1,4,12],[22,19,22,31],[2,27,2,31],[3,27,3,31],[4,27,4,31],[15,29,15,31],[17,1,17,25],[18,8,18,17],[20,19,20,31],[15,1,15,5],[15,7,15,10],[15,12,15,15],[15,20,15,22],[15,23,15,24],[9,26,9,30],[1,13,6,22],[2,24,2,26]]}
[]
[null,"المملكة العربية السعودية",null,null,null,"المملكة العربية السعودية",null,null,null,"المملكة العربية السعودية"]
[null,"وزارة الصحة",null,null,null,"وزارة الصحة",null,null,null,"وزارة الصحة",null,null,null,null,null,null,null,null,null,null,null,null,null,null,"الرقم :"]
[null,"المديرية العامة للشئون الصحية بمنطقة جازان",null,null,null,"المديرية العامة للشئون الصحية بمنطقة جازان",null,null,null,"المديرية العامة للشئون الصحية بمنطقة جازان",null,null,null,null,null,null,null,null,null,null,null,null,null,null,"تاريخ"]
[null,{"$f":"الادخال!B5","v":"مستشفى احد المسارحة العام"},null,null,null,"مستشفى احد المسارحة العام",null,null,null,"مستشفى احد المسارحة العام",null,null,null,null,null,null,null,null,null,null,null,null,null,null,"المرفقات"]
[null,"برنامج التخلص الامن من النفايات الطبية",null,null,null,"الخدمة الاجتماعية الطبية",null,null,null,"الخدمة الاجتماعية الطبية"]
[]
[]
[]
[null,"سعادة مدير ادارة صحة البيئة والسلامة المهنية بصحة جازان",null,null,null,null,null,null,null,null,null,null,null,null,null,null,null,null,null,null,null,null,null,null,null,null,"المحترم"]
[null,"السلام عليكم ورحمة الله وبركاته...وبعد"]
[null,"نرفق لكم بطيه المستخلص الشهري لاعمال التخلص الامن من النفايات الطبية الخطرة حسب الاتي:-"]
[null,"اسم العقد : التخلص الامن من النفايات الطبية الخطرة للمرافق الصحية بمنطقة جازان"]
[null,"اسم المقاول: الشركة السعودية الخليجية لحماية البيئة (سيبكو)"]
[null,"الموقع       : ",null,null,{"$f":"الادخال!K15","v":"مدير مستشفى احد المسارحة العام"},null,null,null,null,null,null,null,null,null,null,null,null,null," بمنطقة جازان"]
[null,"وذلك خلال شهر",null,null,null,null,")",{"$f":"الادخال!H10:K10","v":"ابريل"},null,null,null,"(","للفترة من :",null,null,null,{"$f":"الادخال!Q10","v":1},"/",{"$f":"الادخال!S10","v":4},"/",{"$f":"الادخال!U10:W10","v":"2019م"},null,null,"حتى:",null,{"$f":"الادخال!Z10","v":30},"/",{"$f":"الادخال!AB10","v":4},"/",{"$f":"الادخال!AD10:AF10","v":"2019م"}]
[]
[null,"نامل التكرم بالاطلاع واكمال اللازم نحو رفع استحقاق المقاول المذكور حسب النظام."]
[null,null,null,null,null,null,null,null,"والله ولي التوفيق،،،،"]
[]
[null,null,null,null,null,null,null,null,null,null,null,null,null,null,null,null,null,null,null,{"$f":"الادخال!K15","v":"مدير مستشفى احد المسارحة العام"}]
[]
[null,null,null,null,null,null,null,null,null,null,null,null,null,null,null,null,null,null,null,{"$f":"الادخال!L18","v":"أ/محمد بن عمران صفحي "}]

{"sheet":"مشهد المسلتزمات","index":2,"n_rows":18,"n_cols":30,"rows_kept":18,"cut":false,"hidden":false,"merged":[[1,1,1,12],[1,13,6,22],[2,1,2,12],[2,24,2,26],[2,27,2,31],[3,1,3,12],[3,24,3,26],[3,27,3,31],[4,1,4,12],[4,24,4,26],[4,27,4,31],[5,1,5,12],[6,1,6,12],[12,29,12,31],[15,19,15,31],[17,19,17,31],[9,1,9,30],[12,1,12,5],[12,7,12,10],[12,12,12,15],[12,20,12,22],[12,23,12,24],[10,1,10,4],[10,5,10,17],[11,1,11,31],[10,18,10,31]]}
[]
[null,"المملكة العربية السعودية",null,null,null,"المملكة العربية السعودية",null,null,null,"المملكة العربية السعودية"]
[null,"وزارة الصحة",null,null,null,"وزارة الصحة",null,null,null,"وزارة الصحة",null,null,null,null,null,null,null,null,null,null,null,null,null,null,"الرقم :"]
[null,"المديرية العامة للشئون الصحية بمنطقة جازان",null,null,null,"المديرية العامة للشئون الصحية بمنطقة جازان",null,null,null,"المديرية العامة للشئون الصحية بمنطقة جازان",null,null,null,null,null,null,null,null,null,null,null,null,null,null,"تاريخ"]
[null,{"$f":"الادخال!B5","v":"مستشفى احد المسارحة العام"},null,null,null,"مستشفى احد المسارحة العام",null,null,null,"مستشفى احد المسارحة العام",null,null,null,null,null,null,null,null,null,null,null,null,null,null,"المرفقات"]
[null,"برنامج التخلص الامن من النفايات الطبية",null,null,null,"الخدمة الاجتماعية الطبية",null,null,null,"الخدمة الاجتماعية الطبية"]
[]
[]
[]
[null,"مشهد توفير مستلزمات"]
[null,"تشهد إدارة ",null,null,null,{"$f":"الادخال!K15","v":"مدير مستشفى احد المسارحة العام"},null,null,null,null,null,null,null,null,null,null,null,null,"بأن شركة السعودية الخليجية لحماية  البيئة (سيبكو)    "]
[null,"قد قامت بتوفير المستهلكات والمستلزمات بالعقد "]
[null,"وذلك خلال شهر",null,null,null,null,")",{"$f":"الادخال!H10:K10","v":"ابريل"},null,null,null,"(","للفترة من :",null,null,null,{"$f":"الادخال!Q10","v":1},"/",{"$f":"الادخال!S10","v":4},"/",{"$f":"الادخال!U10:W10","v":"2019م"},null,null,"حتى:",null,{"$f":"الادخال!Z10","v":30},"/",{"$f":"الادخال!AB10","v":4},"/",{"$f":"الادخال!AD10:AF10","v":"2019م"}]
[]
[]
[null,null,null,null,null,null,null,null,null,null,null,null,null,null,null,null,null,null,null,{"$f":"الادخال!K15","v":"مدير مستشفى احد المسارحة العام"}]
[]
[null,null,null,null,null,null,null,null,null,null,null,null,null,null,null,null,null,null,null,{"$f":"الادخال!L18","v":"أ/محمد بن عمران صفحي "}]

{"sheet":"مشهد الرواتب","index":3,"n_rows":18,"n_cols":30,"rows_kept":18,"cut":false,"hidden":false,"merged":[[1,1,1,12],[1,13,6,22],[2,1,2,12],[2,24,2,26],[2,27,2,31],[3,1,3,12],[3,24,3,26],[3,27,3,31],[4,1,4,12],[4,24,4,26],[15,19,15,31],[17,19,17,31],[4,27,4,31],[5,1,5,12],[6,1,6,12],[9,1,9,30],[12,7,12,10],[12,12,12,15],[12,20,12,22],[12,23,12,24],[10,1,10,4],[11,1,11,31],[10,5,10,16],[10,17,10,31],[12,0,12,5],[12,29,12,31]]}
[]
[null,"المملكة العربية السعودية",null,null,null,"المملكة العربية السعودية",null,null,null,"المملكة العربية السعودية"]
[null,"وزارة الصحة",null,null,null,"وزارة الصحة",null,null,null,"وزارة الصحة",null,null,null,null,null,null,null,null,null,null,null,null,null,null,"الرقم :"]
[null,"المديرية العامة للشئون الصحية بمنطقة جازان",null,null,null,"المديرية العامة للشئون الصحية بمنطقة جازان",null,null,null,"المديرية العامة للشئون الصحية بمنطقة جازان",null,null,null,null,null,null,null,null,null,null,null,null,null,null,"تاريخ"]
[null,{"$f":"الادخال!B5","v":"مستشفى احد المسارحة العام"},null,null,null,"مستشفى احد المسارحة العام",null,null,null,"مستشفى احد المسارحة العام",null,null,null,null,null,null,null,null,null,null,null,null,null,null,"المرفقات"]
[null,"برنامج التخلص الامن من النفايات الطبية",null,null,null,"الخدمة الاجتماعية الطبية",null,null,null,"الخدمة الاجتماعية الطبية"]
[]
[]
[]
[null,"مشهد باستلام الرواتب"]
[null,"تشهد إدارة ",null,null,null,{"$f":"الادخال!K15","v":"مدير مستشفى احد المسارحة العام"},null,null,null,null,null,null,null,null,null,null,null,"بأن شركة سيبكو لحماية البيئة (مقاول النفايات الطبية"]
[null,"الخطرة). بالمستشفى بأنها قامت بتسليم موظفيها السعوديين رواتب"]
["وذلك خلال شهر",null,null,null,null,null,")",{"$f":"الادخال!H10:K10","v":"ابريل"},null,null,null,"(","للفترة من :",null,null,null,{"$f":"الادخال!Q10","v":1},"/",{"$f":"الادخال!S10","v":4},"/",{"$f":"الادخال!U10:W10","v":"2019م"},null,null,"حتى:",null,{"$f":"الادخال!Z10","v":30},"/",{"$f":"الادخال!AB10","v":4},"/",{"$f":"الادخال!AD10:AF10","v":"2019م"}]
[]
[]
[null,null,null,null,null,null,null,null,null,null,null,null,null,null,null,null,null,null,null,{"$f":"الادخال!K15","v":"مدير مستشفى احد المسارحة العام"}]
[]
[null,null,null,null,null,null,null,null,null,null,null,null,null,null,null,null,null,null,null,{"$f":"الادخال!L18","v":"أ/محمد بن عمران صفحي "}]

{"sheet":"نموذج 2","index":4,"n_rows":61,"n_cols":30,"rows_kept":61,"cut":false,"hidden":false,"merged":[[1,0,1,11],[1,12,6,21],[57,1,57,26],[57,27,57,28],[57,29,57,31],[13,1,13,2],[13,29,13,31],[14,1,14,2],[14,29,14,31],[14,6,14,26],[14,27,14,28],[12,1,12,2],[12,29,12,31],[11,1,11,2],[11,29,11,31],[18,29,18,31],[17,6,17,26],[18,6,18,26],[17,27,17,28],[18,27,18,28],[15,1,15,2],[15,29,15,31],[41,29,41,31],[38,1,38,31],[8,1,8,31],[9,3,9,11],[46,1,46,2],[46,29,46,31],[10,27,10,28],[10,6,10,26],[11,6,11,26],[12,6,12,26],[13,6,13,26],[11,27,11,28],[12,27,12,28],[13,27,13,28],[10,3,10,5],[11,3,16,5],[16,1,16,2],[16,29,16,31],[15,6,15,26],[16,6,16,26],[15,27,15,28],[16,27,16,28],[17,3,19,5],[23,29,23,31],[24,1,24,2],[17,1,17,2],[47,1,47,2],[47,29,47,31],[44,1,44,2],[44,29,44,31],[45,1,45,2],[45,29,45,31],[42,29,42,31],[48,1,48,2],[48,29,48,31],[45,27,45,28],[43,27,43,28],[46,6,46,26],[46,27,46,28],[44,27,44,28],[45,6,45,26],[49,6,49,26],[49,27,49,28],[54,1,54,2],[54,6,54,26],[52,1,52,2],[52,29,52,31],[53,1,53,2],[53,29,53,31],[50,1,50,2],[50,29,50,31],[51,1,51,2],[51,29,51,31],[54,29,54,31],[50,6,50,26],[50,27,50,28],[51,6,51,26],[51,27,51,28],[52,6,52,26],[17,29,17,31],[18,1,18,2],[36,0,36,11],[25,1,25,2],[25,6,25,26],[25,27,25,28],[25,29,25,31],[26,6,26,26],[26,27,26,28],[26,29,26,31],[26,1,26,2],[32,23,32,25],[32,26,32,30],[33,0,33,11],[33,23,33,25],[33,26,33,30],[34,0,34,11],[19,27,19,28],[24,29,24,31],[21,6,21,26],[21,27,21,28],[21,29,21,31],[22,1,22,2],[22,6,22,26],[22,27,22,28],[22,29,22,31],[20,3,26,5],[23,1,23,2],[23,6,23,26],[23,27,23,28],[20,27,20,28],[20,1,20,2],[21,1,21,2],[56,29,56,31],[39,20,39,22],[39,29,39,31],[40,1,40,2],[40,29,40,31],[41,3,45,5],[46,3,48,5],[49,3,53,5],[54,3,56,5],[54,27,54,28],[55,1,55,2],[55,6,55,26],[55,27,55,28],[55,29,55,31],[43,29,43,31],[44,6,44,26],[53,6,53,26],[53,27,53,28],[49,1,49,2],[49,29,49,31],[47,6,47,26],[47,27,47,28],[48,6,48,26],[48,27,48,28],[32,0,32,11],[40,6,40,26],[40,27,40,28],[41,1,41,2],[2,0,2,11],[2,23,2,25],[2,26,2,30],[3,0,3,11],[3,23,3,25],[3,26,3,30],[34,26,34,30],[35,0,35,11],[19,1,19,2],[19,29,19,31],[20,29,20,31],[19,6,19,26],[20,6,20,26],[4,0,4,11],[4,23,4,25],[4,26,4,30],[5,0,5,11],[6,0,6,11],[24,6,24,26],[24,27,24,28],[28,18,28,29],[59,18,59,28],[60,2,60,11],[60,19,60,27],[29,19,29,27],[29,2,29,11],[28,2,28,11],[59,2,59,11],[56,1,56,2],[56,6,56,26],[56,27,56,28],[41,6,41,26],[41,27,41,28],[42,1,42,2],[42,6,42,26],[42,27,42,28],[43,1,43,2],[43,6,43,26],[39,3,39,11],[40,3,40,5],[34,23,34,25],[52,27,52,28],[31,0,31,11],[31,12,36,21]]}
[]
["المملكة العربية السعودية",null,null,null,"المملكة العربية السعودية",null,null,null,"المملكة العربية السعودية"]
["وزارة الصحة",null,null,null,"وزارة الصحة",null,null,null,"وزارة الصحة",null,null,null,null,null,null,null,null,null,null,null,null,null,null,"الرقم :"]
["المديرية العامة للشئون الصحية بمنطقة جازان",null,null,null,"المديرية العامة للشئون الصحية بمنطقة جازان",null,null,null,"المديرية العامة للشئون الصحية بمنطقة جازان",null,null,null,null,null,null,null,null,null,null,null,null,null,null,"تاريخ"]
[{"$f":"الادخال!B5","v":"مستشفى احد المسارحة العام"},null,null,null,"مستشفى احد المسارحة العام",null,null,null,"مستشفى احد المسارحة العام",null,null,null,null,null,null,null,null,null,null,null,null,null,null,"المرفقات"]
["برنامج التخلص الامن من النفايات الطبية",null,null,null,"الخدمة الاجتماعية الطبية",null,null,null,"الخدمة الاجتماعية الطبية"]
[]
[]
[null,"نموذج (2)"]
[null,"لشهر",null,{"$f":"الادخال!H10","v":"ابريل"},null,null,null,null,null,null,null,null,"للفترة من :",null,null,null,{"$f":"الادخال!Q10","v":1},"/",{"$f":"الادخال!S10","v":4},"/",{"$f":"الادخال!U10:W10","v":"2019م"},null,null,"حتى:",null,{"$f":"الادخال!Z10","v":30},"/",{"$f":"الادخال!AB10","v":4},"/",{"$f":"الادخال!AD10:AF10","v":"2019م"}]
[null,"الرقم",null,"البند",null,null,"البيان",null,null,null,null,null,null,null,null,null,null,null,null,null,null,null,null,null,null,null,null,"الدرجة",null,"التقييم"]
[null,1,null,"المستهلكات",null,null,"توفير أكياس جمع النفايات الصفراء والحمراء مطابقة لسماكة 80 ميكرون \nومقاومة للتمزق عليها شعار الخطر الحيوي",null,null,null,null,null,null,null,null,null,null,null,null,null,null,null,null,null,null,null,null,10]
[null,2,null,null,null,null,"توفير اشرطة بلاستيكية عليها شعار الخطر الحيوي",null,null,null,null,null,null,null,null,null,null,null,null,null,null,null,null,null,null,null,null,3]
[null,3,null,null,null,null,"توفير حاويات النفايات الحادة الصفراء اللون وذات غطاء يغلق مرة واحدة فقط \nوعليها شعار الخطر الحيوي",null,null,null,null,null,null,null,null,null,null,null,null,null,null,null,null,null,null,null,null,10]
[null,4,null,null,null,null,"توفير بطاقات لاصقة تعريفية موضح بها القسم والتاريخ وتوفير مشرف المراكز",null,null,null,null,null,null,null,null,null,null,null,null,null,null,null,null,null,null,null,null,5]
[null,5,null,null,null,null,"استعمال مطهرات معتمدة لتنظيف وتطهير حاويات النفايات الطبية وعربات النقل\n وعربة التجميع بالمركز الصحي",null,null,null,null,null,null,null,null,null,null,null,null,null,null,null,null,null,null,null,null,10]
[null,6,null,null,null,null,"توفير الواقيات الشخصية لعمال وعاملات جميع النفايات الطبية (المريول الواقي\n الأصفر/ قفازات الخدمة الشاقة /الأحذية الواقية /الكمام القياسي العادي\n /النظارات الواعية للاعين / القفازات المطاطية الغير معقمة)",null,null,null,null,null,null,null,null,null,null,null,null,null,null,null,null,null,null,null,null,10]
[null,7,null,"المستلزمات",null,null,"توفير حاويات الأكياس النفايات الطبية ستانلس ستيل او بلاستيك قوي لها غطاء\n ينفتح بالقدم وعليها شعار الخطر الحيوي من جانبين على الأقل (استبدال التالف\n بصورة فورية)",null,null,null,null,null,null,null,null,null,null,null,null,null,null,null,null,null,null,null,null,15]
[null,8,null,null,null,null,"توفير أدوات نظافة الحاويات وعربات النقل وغرفة التخزين النفايات (استبدال \nالتالف بصورة فورية)",null,null,null,null,null,null,null,null,null,null,null,null,null,null,null,null,null,null,null,null,10]
[null,9,null,null,null,null,"توفير عربة نقل النفايات في المركز الصحي من بلاستيك المقوى وعليها شعار \nخطر حيوي ولها غطاء محكم الغلق (عمل الصيانة اللازمة للمعطل)",null,null,null,null,null,null,null,null,null,null,null,null,null,null,null,null,null,null,null,null,15]
[null,10,null,"جميع ونقل النفايات داخل المنشأة",null,null,"يتم الجمع من اقسام المركز الصحي بمواعيد ثابتة وجدول معلن دون تأخير ",null,null,null,null,null,null,null,null,null,null,null,null,null,null,null,null,null,null,null,null,8]
[null,11,null,null,null,null,"يتم جمع الاكياس عند امتلائها وحاويات النفايات الحادة عند وصولها ثلاثة ارباع\n الحاوية ",null,null,null,null,null,null,null,null,null,null,null,null,null,null,null,null,null,null,null,null,8]
[null,12,null,null,null,null,"يلتزم عمال جمع النفايات بارتداء الواقيات الشخصية عند جمع ونقل النفايات ",null,null,null,null,null,null,null,null,null,null,null,null,null,null,null,null,null,null,null,null,8]
[null,13,null,null,null,null,"يتم غلق الاكياس بالأشرطة البلاستيكية ",null,null,null,null,null,null,null,null,null,null,null,null,null,null,null,null,null,null,null,null,5]
[null,14,null,null,null,null,"يتم وضع البطاقات اللاصقة على الاكياس وحاويات النفايات الحادة ",null,null,null,null,null,null,null,null,null,null,null,null,null,null,null,null,null,null,null,null,3]
[null,15,null,null,null,null,"يتم النقل من الأقسام الطبية باستخدام عربات النقل بصورة امنه",null,null,null,null,null,null,null,null,null,null,null,null,null,null,null,null,null,null,null,null,5]
[null,16,null,null,null,null,"لا يتم جمع أكياس النفايات الممتلئة في كيس واحد",null,null,null,null,null,null,null,null,null,null,null,null,null,null,null,null,null,null,null,null,5]
[]
[null,null,"مسئول برنامج النفايات الطبية",null,null,null,null,null,null,null,null,null,null,null,null,null,null,null,{"$f":"الادخال!K15","v":"مدير مستشفى احد المسارحة العام"}]
[null,null,{"$f":"الادخال!L25","v":"حسين صفحي "},null,null,null,null,null,null,null,null,null,null,null,null,null,null,null,null,{"$f":"الادخال!L18","v":"أ/محمد بن عمران صفحي "}]
[]
["المملكة العربية السعودية",null,null,null,"المملكة العربية السعودية",null,null,null,"المملكة العربية السعودية"]
["وزارة الصحة",null,null,null,"وزارة الصحة",null,null,null,"وزارة الصحة",null,null,null,null,null,null,null,null,null,null,null,null,null,null,"الرقم :"]
["المديرية العامة للشئون الصحية بمنطقة جازان",null,null,null,"المديرية العامة للشئون الصحية بمنطقة جازان",null,null,null,"المديرية العامة للشئون الصحية بمنطقة جازان",null,null,null,null,null,null,null,null,null,null,null,null,null,null,"تاريخ"]
[{"$f":"الادخال!B5","v":"مستشفى احد المسارحة العام"},null,null,null,"مستشفى احد المسارحة العام",null,null,null,"مستشفى احد المسارحة العام",null,null,null,null,null,null,null,null,null,null,null,null,null,null,"المرفقات"]
["برنامج التخلص الامن من النفايات الطبية",null,null,null,"الخدمة الاجتماعية الطبية",null,null,null,"الخدمة الاجتماعية الطبية"]
[]
[]
[null,"نموذج (2)"]
[null,"لشهر",null,{"$f":"الادخال!H10","v":"ابريل"},null,null,null,null,null,null,null,null,"للفترة من :",null,null,null,{"$f":"الادخال!Q10","v":1},"/",{"$f":"الادخال!S10","v":4},"/",{"$f":"الادخال!U10","v":"2019م"},null,null,"حتى:",null,{"$f":"الادخال!Z10","v":30},"/",{"$f":"الادخال!AB10","v":4},"/",{"$f":"الادخال!AD10","v":"2019م"}]
[null,"الرقم",null,"البند",null,null,"البيان",null,null,null,null,null,null,null,null,null,null,null,null,null,null,null,null,null,null,null,null,"الدرجة",null,"التقييم"]
[null,17,null,"تخزين النفايات الطبية المؤقتة\n والنقل خارج المنشأة",null,null,"لا توجد أكياس مفتوحة او ممزقة بعربة تخزين النفايات ",null,null,null,null,null,null,null,null,null,null,null,null,null,null,null,null,null,null,null,null,5]
[null,18,null,null,null,null,"لا تستعمل غرفة تخزين النفايات الطبية في أغراض أخرى بخلاف تخزين \nالنفايات الطبية",null,null,null,null,null,null,null,null,null,null,null,null,null,null,null,null,null,null,null,null,5]
[null,19,null,null,null,null,"باب غرفة التخزين النفايات مغلقا على الدوام",null,null,null,null,null,null,null,null,null,null,null,null,null,null,null,null,null,null,null,null,5]
[null,20,null,null,null,null,"يتم نقل النفايات الطبية الى خارج المركز الصحي يوميا(كل 24 ساعة)على \nالأكثر",null,null,null,null,null,null,null,null,null,null,null,null,null,null,null,null,null,null,null,null,15]
[null,21,null,null,null,null,"يتم النقل بواسطة سيارة مجهزة ومطابقة للمواصفات وعلية ملصق الخطر\n الحيوي من جانبين على الأقل ",null,null,null,null,null,null,null,null,null,null,null,null,null,null,null,null,null,null,null,null,10]
[null,22,null,"النظافة والتطهير",null,null,"يتم تنظيف وتطهير حاويات الاكياس الصفراء بصورة دوريه (يوميا على الأقل)",null,null,null,null,null,null,null,null,null,null,null,null,null,null,null,null,null,null,null,null,5]
[null,23,null,null,null,null,"يتم تنظيف وتطهير عربة النقل داخل المنشاة بصورة دورية (يوميا على الأقل)",null,null,null,null,null,null,null,null,null,null,null,null,null,null,null,null,null,null,null,null,5]
[null,24,null,null,null,null,"يتم تنظيف وتطهير غرفة تخزين النفايات بصورة دورية (يوميا بعد نقل النفايات \nخارج المنشاة)",null,null,null,null,null,null,null,null,null,null,null,null,null,null,null,null,null,null,null,null,5]
[null,25,null,"مستندات التعامل مع النفايات \nالطبية",null,null,"يتوفر سجل احصائي بكميات النفايات الطبية وانواعها ومصدرها (المركز \nالصحي المنتج)",null,null,null,null,null,null,null,null,null,null,null,null,null,null,null,null,null,null,null,null,5]
[null,26,null,null,null,null,"يوجد سجل حضور عمال نقل النفايات",null,null,null,null,null,null,null,null,null,null,null,null,null,null,null,null,null,null,null,null,10]
[null,27,null,null,null,null,"يتم تزويد القطاع الصحي بشهادة استلام النفايات الطبية يوميا موضحا بها \nالكميات والانواع وطرق المعالجة",null,null,null,null,null,null,null,null,null,null,null,null,null,null,null,null,null,null,null,null,10]
[null,28,null,null,null,null,"يتم تزويد القطاع الصحي بشهادة إتمام المعالجة بصورة يومية موضحا بها \nالكميات وانواعها وطرق المعالجة",null,null,null,null,null,null,null,null,null,null,null,null,null,null,null,null,null,null,null,null,10]
[null,29,null,null,null,null,"يتم تزويد القطاع الصحي بنتائج اختبارات الجود والجودة النوعية بعملية \nالمعالجة والتخلص النهائي من النفايات الطبية",null,null,null,null,null,null,null,null,null,null,null,null,null,null,null,null,null,null,null,null,10]
[null,30,null,"عمال النفايات",null,null,"يلتزم جميع العاملين المنصوص عليهم في العقد بالحضور حسب الجدول المعلن \nبتنسيق مع مشرف صحة البيئة بالقطاع الصحي",null,null,null,null,null,null,null,null,null,null,null,null,null,null,null,null,null,null,null,null,10]
[null,31,null,null,null,null,"يلتزم جميع العاملين بممارس نظافة وتطهير الايدي بصورة صحيحه بعد التعامل \nمع النفايات الطبية",null,null,null,null,null,null,null,null,null,null,null,null,null,null,null,null,null,null,null,null,5]
[null,32,null,null,null,null,"الالتزام بالإبلاغ عن إصابات الوخز بالإبر والآلات الحادة بقسم صحة البيئة \nبالقطاع الصحي",null,null,null,null,null,null,null,null,null,null,null,null,null,null,null,null,null,null,null,null,5]
[null,"المجموع",null,null,null,null,null,null,null,null,null,null,null,null,null,null,null,null,null,null,null,null,null,null,null,null,null,250]
[]
[null,null,"مسئول برنامج النفايات الطبية",null,null,null,null,null,null,null,null,null,null,null,null,null,null,null,{"$f":"الادخال!K15","v":"مدير مستشفى احد المسارحة العام"}]
[null,null,{"$f":"الادخال!L25","v":"حسين صفحي "},null,null,null,null,null,null,null,null,null,null,null,null,null,null,null,null,{"$f":"الادخال!L18","v":"أ/محمد بن عمران صفحي "}]

{"sheet":"الحضور و الانصراف","index":5,"n_rows":28,"n_cols":43,"rows_kept":28,"cut":false,"hidden":false,"merged":[[25,1,25,9],[26,1,26,9],[25,31,25,41],[27,31,27,41],[23,1,23,5],[23,6,23,18],[12,29,12,31],[11,5,11,42],[1,5,1,9],[2,5,2,9],[3,5,3,9],[4,5,4,9],[6,5,6,9],[12,1,12,6],[12,7,12,10],[12,12,12,15],[12,20,12,22],[12,23,12,24],[5,5,5,9],[19,2,19,5],[20,2,20,5],[21,2,21,5],[13,2,13,5],[14,2,14,5],[15,2,15,5],[16,2,16,5],[17,2,17,5],[18,2,18,5]]}
[]
[null,null,null,null,null,"المملكة العربية السعودية"]
[null,null,null,null,null,"وزارة الصحة "]
[null,null,null,null,null,"المديرية العامة للشئون الصحية بمنطقة جازان"]
[null,null,null,null,null,{"$f":"الادخال!B5","v":"مستشفى احد المسارحة العام"}]
[null,null,null,null,null,"برنامج التخلص الامن من النفايات الطبية"]
[]
[]
[]
[]
[]
[null,null,null,null,null,"حضور وإنصراف العاملين"]
[null,"وذلك خلال شهر                          (",null,null,null,null,null,{"$f":"الادخال!H10","v":"ابريل"},null,null,null,"(","للفترة من :",null,null,null,{"$f":"الادخال!Q10","v":1},"/",{"$f":"الادخال!S10","v":4},"/",{"$f":"الادخال!U10","v":"2019م"},null,null,"حتى:",null,{"$f":"الادخال!Z10","v":30},"/",{"$f":"الادخال!AB10","v":4},"/",{"$f":"الادخال!AD10","v":"2019م"}]
[null,"م","الاســــــم",null,null,null,"الوظيفية",1,2,3,4,5,6,7,8,9,10,11,12,13,14,15,16,17,18,19,20,21,22,23,24,25,26,27,28,29,30,31,"عدد\nايام\nالغياب","قيمة ايام الغياب","غرامة الغياب\nلليوم\nالواحد","اقيمة\nغرام الغياب","الصافي المستحق"]
[null,{"$f":"الادخال!U25","v":1},{"$f":"الادخال!V25","v":"هدى كريري"}]
[null,{"$f":"الادخال!U26","v":2},{"$f":"الادخال!V26","v":"مؤمن مياة"}]
[null,{"$f":"الادخال!U27","v":3},{"$f":"الادخال!V27","v":"مشاهبنار مينو"}]
[null,{"$f":"الادخال!U28","v":4},{"$f":"الادخال!V28","v":0}]
[null,{"$f":"الادخال!U29","v":5},{"$f":"الادخال!V29","v":0}]
[null,{"$f":"الادخال!U30","v":6},{"$f":"الادخال!V30","v":0}]
[null,{"$f":"الادخال!U31","v":7},{"$f":"الادخال!V31","v":0}]
[null,{"$f":"الادخال!U32","v":8},{"$f":"الادخال!V32","v":0}]
[]
[null,"ح  / حضور  ",null,null,null,null,"غ / غياب                              "]
[]
[null,"مسئول برنامج النفايات الطبية",null,null,null,null,null,null,null,null,null,null,null,null,null,null,null,null,null,null,null,null,null,null,null,null,null,null,null,null,null,{"$f":"الادخال!K15","v":"مدير مستشفى احد المسارحة العام"}]
[null,{"$f":"الادخال!L25","v":"حسين صفحي "}]
[null,null,null,null,null,null,null,null,null,null,null,null,null,null,null,null,null,null,null,null,null,null,null,null,null,null,null,null,null,null,null,{"$f":"الادخال!L18","v":"أ/محمد بن عمران صفحي "}]

{"sheet":"الابلاغ عن الوخز","index":6,"n_rows":27,"n_cols":30,"rows_kept":27,"cut":false,"hidden":true,"merged":[[21,18,21,24],[21,25,21,31],[14,24,14,31],[15,24,15,31],[14,1,14,23],[15,1,15,23],[16,18,16,24],[16,25,16,31],[16,1,17,17],[17,18,17,24],[17,25,17,31],[12,24,12,31],[12,16,12,23],[12,1,12,15],[13,1,13,15],[13,16,13,23],[13,24,13,31],[26,19,26,31],[24,2,24,10],[24,19,24,31],[25,2,25,10],[18,1,18,17],[18,18,18,24],[19,1,19,17],[19,18,19,24],[22,1,22,17],[20,1,20,17],[19,25,19,31],[20,18,20,24],[18,25,18,31],[22,18,22,31],[20,25,20,31],[21,1,21,17],[11,1,11,29],[4,27,4,31],[5,1,5,12],[6,1,6,12],[9,1,9,30],[10,1,10,5],[10,7,10,10],[10,12,10,15],[10,20,10,22],[10,23,10,24],[10,29,10,31],[1,1,1,12],[1,13,6,22],[2,1,2,12],[2,24,2,26],[2,27,2,31],[3,1,3,12],[3,24,3,26],[3,27,3,31],[4,1,4,12],[4,24,4,26]]}
[]
[null,"المملكة العربية السعودية",null,null,null,"المملكة العربية السعودية",null,null,null,"المملكة العربية السعودية"]
[null,"وزارة الصحة",null,null,null,"وزارة الصحة",null,null,null,"وزارة الصحة"]
[null,"المديرية العامة للشئون الصحية بمنطقة جازان",null,null,null,"المديرية العامة للشئون الصحية بمنطقة جازان",null,null,null,"المديرية العامة للشئون الصحية بمنطقة جازان",null,null,null,null,null,null,null,null,null,null,null,null,null,null,"تاريخ"]
[null,"مستشفى احد المسارحة العام",null,null,null,"مستشفى احد المسارحة العام",null,null,null,"مستشفى احد المسارحة العام"]
[null,"برنامج التخلص الامن من النفايات الطبية",null,null,null,"الخدمة الاجتماعية الطبية",null,null,null,"الخدمة الاجتماعية الطبية"]
[]
[]
[]
[null,"نموذج الابلاغ عن الاصابة / الوخز او مرض بسبب تداول النفايات الطبية الخطرة"]
[null,"خلال شهر",null,null,null,null,")",{"$f":"الادخال!H10","v":"ابريل"},null,null,null,"(","للفترة من :",null,null,null,{"$f":"الادخال!Q10","v":1},"/",{"$f":"الادخال!S10","v":4},"/",{"$f":"الادخال!U10","v":"2019م"},null,null,"حتى:",null,{"$f":"الادخال!Z10","v":30},"/",{"$f":"الادخال!AB10","v":4},"/",{"$f":"الادخال!AD10","v":"2019م"}]
[]
[null,"اسم المصاب ",null,null,null,null,null,null,null,null,null,null,null,null,null,null,"الوظيفة",null,null,null,null,null,null,null,"القسم"]
[null,{"$f":"الادخال!B46:P46","v":0},null,null,null,null,null,null,null,null,null,null,null,null,null,null,{"$f":"الادخال!Q46:X46","v":0},null,null,null,null,null,null,null,{"$f":"الادخال!Y46:AF46","v":0}]
[null,"نوع الاصابة / المرض",null,null,null,null,null,null,null,null,null,null,null,null,null,null,null,null,null,null,null,null,null,null,"التاريخ"]
[null,{"$f":"الادخال!B48:X48","v":0},null,null,null,null,null,null,null,null,null,null,null,null,null,null,null,null,null,null,null,null,null,null,{"$f":"الادخال!Y48:AF48","v":0}]
[null,"هل تم التطعيم قبل الاصابة (نوع التطعيم)",null,null,null,null,null,null,null,null,null,null,null,null,null,null,null,null,"نعم",null,null,null,null,null,null,"لا"]
[null,null,null,null,null,null,null,null,null,null,null,null,null,null,null,null,null,null,{"$f":"الادخال!S50:Y50","v":0},null,null,null,null,null,null,{"$f":"الادخال!Z50:AF50","v":0}]
[null,"تيتانس",null,null,null,null,null,null,null,null,null,null,null,null,null,null,null,null,{"$f":"الادخال!S51:Y51","v":0},null,null,null,null,null,null,{"$f":"الادخال!Z51:AF51","v":0}]
[null,"التهاب كبدي وبائي",null,null,null,null,null,null,null,null,null,null,null,null,null,null,null,null,{"$f":"الادخال!S52:Y52","v":0},null,null,null,null,null,null,{"$f":"الادخال!Z52:AF52","v":0}]
[null,"اخرى (حدد نوع التطعيم اذا وجد)",null,null,null,null,null,null,null,null,null,null,null,null,null,null,null,null,{"$f":"الادخال!S53:Y53","v":0},null,null,null,null,null,null,{"$f":"الادخال!Z53:AF53","v":0}]
[null,"تطعيم بعد الاصابة (حدد نوع التطعيم اذا وجد)",null,null,null,null,null,null,null,null,null,null,null,null,null,null,null,null,{"$f":"الادخال!S55:Y55","v":0},null,null,null,null,null,null,{"$f":"الادخال!Z55:AF55","v":0}]
[null,"لا توجد اصابات وخز",null,null,null,null,null,null,null,null,null,null,null,null,null,null,null,null,{"$f":"الادخال!S56","v":0}]
[]
[null,null,"معد التقرير",null,null,null,null,null,null,null,null,null,null,null,null,null,null,null,null,"مدير مستشفى احد المسارحة العام"]
[null,null,"حسين صفحي"]
[null,null,null,null,null,null,null,null,null,null,null,null,null,null,null,null,null,null,null,"أ. مجلي بن علي كريري"]

{"sheet":"رفع الكميات","index":7,"n_rows":20,"n_cols":30,"rows_kept":20,"cut":false,"hidden":true,"merged":[[14,1,14,25],[15,8,15,17],[17,19,17,31],[19,19,19,31],[9,26,9,30],[10,1,10,12],[9,1,9,23],[12,1,12,5],[12,7,12,10],[12,12,12,15],[12,20,12,22],[12,23,12,24],[11,1,11,30],[12,29,12,31],[1,1,1,12],[1,13,6,22],[2,1,2,12],[2,24,2,26],[2,27,2,31],[3,1,3,12],[3,24,3,26],[3,27,3,31],[4,1,4,12],[4,24,4,26],[4,27,4,31],[5,1,5,12],[6,1,6,12]]}
[]
[null,"المملكة العربية السعودية",null,null,null,"المملكة العربية السعودية",null,null,null,"المملكة العربية السعودية"]
[null,"وزارة الصحة",null,null,null,"وزارة الصحة",null,null,null,"وزارة الصحة",null,null,null,null,null,null,null,null,null,null,null,null,null,null,"الرقم :",null,null,{"$f":"الادخال!AB3:AF3","v":0}]
[null,"المديرية العامة للشئون الصحية بمنطقة جازان",null,null,null,"المديرية العامة للشئون الصحية بمنطقة جازان",null,null,null,"المديرية العامة للشئون الصحية بمنطقة جازان",null,null,null,null,null,null,null,null,null,null,null,null,null,null,"تاريخ",null,null,{"$f":"الادخال!AB4:AF4","v":0}]
[null,"مستشفى احد المسارحة العام",null,null,null,"مستشفى احد المسارحة العام",null,null,null,"مستشفى احد المسارحة العام",null,null,null,null,null,null,null,null,null,null,null,null,null,null,"المرفقات",null,null,{"$f":"الادخال!AB5:AF5","v":0}]
[null,"برنامج التخلص الامن من النفايات الطبية",null,null,null,"الخدمة الاجتماعية الطبية",null,null,null,"الخدمة الاجتماعية الطبية"]
[]
[]
[]
[null,"سعادة مدير ادارة صحة البيئة والسلامة المهنية بصحة جازان",null,null,null,null,null,null,null,null,null,null,null,null,null,null,null,null,null,null,null,null,null,null,null,null,"المحترم"]
[null,"السلام عليكم ورحمة الله وبركاته...وبعد"]
[null,"تــــــجـــــــــــــدون بـــــــــرفقه بيـــــــــــــــان كـــــــــــميـــــــات النــــــــــفايــــــــات الطبــــــــــيــــــة الخـــــــــــــــطـــــــــــرة المــــــــــنتـــــــجة "]
[null,"وذلك خلال شهر",null,null,null,null,")",{"$f":"الادخال!H10:K10","v":"ابريل"},null,null,null,"(","للفترة من :",null,null,null,{"$f":"الادخال!Q10","v":1},"/",{"$f":"الادخال!S10","v":4},"/",{"$f":"الادخال!U10:W10","v":"2019م"},null,null,"حتى:",null,{"$f":"الادخال!Z10","v":30},"/",{"$f":"الادخال!AB10","v":4},"/",{"$f":"الادخال!AD10:AF10","v":"2019م"}]
[]
[null,"للاطلاع واتخاذ اللازم.."]
[null,null,null,null,null,null,null,null,"والله ولي التوفيق،،،،"]
[]
[null,null,null,null,null,null,null,null,null,null,null,null,null,null,null,null,null,null,null,"مدير مستشفى احد المسارحة العام"]
[]
[null,null,null,null,null,null,null,null,null,null,null,null,null,null,null,null,null,null,null,"أ. مجلي بن علي كريري"]

{"sheet":"الكميات","index":8,"n_rows":38,"n_cols":30,"rows_kept":38,"cut":false,"hidden":true,"merged":[[36,2,36,10],[37,19,37,31],[30,1,30,24],[30,25,30,28],[30,29,30,31],[35,2,35,10],[35,19,35,31],[29,1,29,2],[29,3,29,24],[29,25,29,31],[27,1,27,2],[27,3,27,24],[27,25,27,31],[28,1,28,2],[28,3,28,24],[28,25,28,31],[24,1,24,29],[25,1,25,2],[25,3,25,24],[25,25,25,31],[26,1,26,2],[26,3,26,24],[26,25,26,31],[1,1,1,12],[1,13,6,22],[2,1,2,12],[2,24,2,26],[2,27,2,31],[3,1,3,12],[3,24,3,26],[3,27,3,31],[4,1,4,12],[4,24,4,26],[4,27,4,31],[5,1,5,12],[6,1,6,12],[9,1,9,30],[10,29,10,31],[11,1,11,29],[12,1,12,2],[12,3,12,24],[13,1,13,2],[13,3,13,24],[10,1,10,5],[10,7,10,10],[10,12,10,15],[10,20,10,22],[10,23,10,24],[18,1,18,2],[18,3,18,24],[19,1,19,2],[19,3,19,24],[12,25,12,31],[16,1,16,2],[16,3,16,24],[17,1,17,2],[17,3,17,24],[14,1,14,2],[14,3,14,24],[15,1,15,2],[15,3,15,24],[13,25,13,31],[14,25,14,31],[15,25,15,31],[22,1,22,24],[22,29,22,31],[20,1,20,2],[20,3,20,24],[21,1,21,2],[21,3,21,24],[22,25,22,27],[21,25,21,31],[16,25,16,31],[17,25,17,31],[18,25,18,31],[19,25,19,31],[20,25,20,31]]}
[]
[null,"المملكة العربية السعودية",null,null,null,"المملكة العربية السعودية",null,null,null,"المملكة العربية السعودية"]
[null,"وزارة الصحة",null,null,null,"وزارة الصحة",null,null,null,"وزارة الصحة"]
[null,"المديرية العامة للشئون الصحية بمنطقة جازان",null,null,null,"المديرية العامة للشئون الصحية بمنطقة جازان",null,null,null,"المديرية العامة للشئون الصحية بمنطقة جازان",null,null,null,null,null,null,null,null,null,null,null,null,null,null,"تاريخ",null,null,{"$f":"الادخال!AB4:AF4","v":0}]
[null,"مستشفى احد المسارحة العام",null,null,null,"مستشفى احد المسارحة العام",null,null,null,"مستشفى احد المسارحة العام"]
[null,"برنامج التخلص الامن من النفايات الطبية",null,null,null,"الخدمة الاجتماعية الطبية",null,null,null,"الخدمة الاجتماعية الطبية"]
[]
[]
[]
[null,"بيان كميات النفايات الطبية الخطرة المنتجة"]
[null,"خلال شهر",null,null,null,null,")",{"$f":"الادخال!H10:K10","v":"ابريل"},null,null,null,"(","للفترة من :",null,null,null,{"$f":"الادخال!Q10","v":1},"/",{"$f":"الادخال!S10","v":4},"/",{"$f":"الادخال!U10:W10","v":"2019م"},null,null,"حتى:",null,{"$f":"الادخال!Z10","v":30},"/",{"$f":"الادخال!AB10","v":4},"/",{"$f":"الادخال!AD10:AF10","v":"2019م"}]
[null,"أ ) كميات النفايات الصلبة:"]
[null,"م",null,"نوع النفايات الطبية",null,null,null,null,null,null,null,null,null,null,null,null,null,null,null,null,null,null,null,null,null,"الوزن بالكيلو جرام"]
[null,1,null,"تامين كافة المستلزمات بشكل كافي ومطابق للاشتراطات المنصوص عليها",null,null,null,null,null,null,null,null,null,null,null,null,null,null,null,null,null,null,null,null,null,{"$f":"الادخال!Z26:AF26","v":0}]
[null,2,null,"تطبيق المعايير الصحية والبيئية عند كمع ونقل النفايات داخل المرفق الصحي",null,null,null,null,null,null,null,null,null,null,null,null,null,null,null,null,null,null,null,null,null,{"$f":"الادخال!Z27:AF27","v":0}]
[null,3,null,"تبديل اكياس النفايات بشكل يومي",null,null,null,null,null,null,null,null,null,null,null,null,null,null,null,null,null,null,null,null,null,{"$f":"الادخال!Z28:AF28","v":0}]
[null,4,null,"النقل بواسطة عربات نقل مطاه بين الاقسام داخل المنشأة الصحية",null,null,null,null,null,null,null,null,null,null,null,null,null,null,null,null,null,null,null,null,null,{"$f":"الادخال!Z29:AF29","v":0}]
[null,5,null,"نظافة عربات النقل والسلال بشكل يومي",null,null,null,null,null,null,null,null,null,null,null,null,null,null,null,null,null,null,null,null,null,{"$f":"الادخال!Z30:AF30","v":0}]
[null,6,null,"نظافة مركز التخزين المؤقت يوميا وتوفير وسائل السلامة به ووضع اللافتات التحذيرية",null,null,null,null,null,null,null,null,null,null,null,null,null,null,null,null,null,null,null,null,null,{"$f":"الادخال!Z31:AF31","v":0}]
[null,7,null,"القيام بنقل النفايات الطبية خارج امنشأة الصحية بسيارات نقل مطابقة للاشتراطات",null,null,null,null,null,null,null,null,null,null,null,null,null,null,null,null,null,null,null,null,null,{"$f":"الادخال!Z32:AF32","v":0}]
[null,8,null,"توفير العمالة والتزامهم بالزي الرسمي والاحتياطات الوقائية",null,null,null,null,null,null,null,null,null,null,null,null,null,null,null,null,null,null,null,null,null,{"$f":"الادخال!Z33:AF33","v":0}]
[null,9,null,"القيام بالمعالجة وتزويد ادارة النفايات الطبية بشهادة اتام المعالجة",null,null,null,null,null,null,null,null,null,null,null,null,null,null,null,null,null,null,null,null,null,{"$f":"الادخال!Z34:AF34","v":0}]
[null,"المجموع",null,null,null,null,null,null,null,null,null,null,null,null,null,null,null,null,null,null,null,null,null,null,null,{"$f":"Z22+Z21+Z20+Z19+Z18+Z17+Z16+Z15+Z14","v":0},null,null,null,"كليو جرام"]
[]
[null,"أ ) كميات النفايات السائلة:"]
[null,"م",null,"نوع النفايات الطبية",null,null,null,null,null,null,null,null,null,null,null,null,null,null,null,null,null,null,null,null,null,"الوزن بالتر"]
[null,1,null,"النفايات الصيدلانية",null,null,null,null,null,null,null,null,null,null,null,null,null,null,null,null,null,null,null,null,null,{"$f":"الادخال!Z39:AF39","v":0}]
[null,2,null,"النفايات الكميائية السائلة",null,null,null,null,null,null,null,null,null,null,null,null,null,null,null,null,null,null,null,null,null,{"$f":"الادخال!Z40:AF40","v":0}]
[null,3,null,"نفاياتالمواد المشعة السائلة",null,null,null,null,null,null,null,null,null,null,null,null,null,null,null,null,null,null,null,null,null,{"$f":"الادخال!Z41:AF41","v":0}]
[null,4,null,"اخرى تذكر",null,null,null,null,null,null,null,null,null,null,null,null,null,null,null,null,null,null,null,null,null,{"$f":"الادخال!Z42:AF42","v":0}]
[null,"المجموع",null,null,null,null,null,null,null,null,null,null,null,null,null,null,null,null,null,null,null,null,null,null,null,{"$f":"Z30+Z29+Z28+Z27","v":0},null,null,null,"لتر"]
[]
[]
[]
[]
[null,null,"معد التقرير",null,null,null,null,null,null,null,null,null,null,null,null,null,null,null,null,"مدير مستشفى احد المسارحة العام"]
[null,null,"حسين صفحي"]
[null,null,null,null,null,null,null,null,null,null,null,null,null,null,null,null,null,null,null,"أ. مجلي بن علي كريري"]

{"sheet":"محضر الاستلام","index":9,"n_rows":27,"n_cols":10,"rows_kept":27,"cut":false,"hidden":false,"merged":[[26,1,26,2],[26,8,26,10],[1,1,2,1],[4,3,5,3],[21,0,21,1],[21,3,23,9],[24,1,24,3],[24,4,24,6],[5,0,6,2],[6,7,6,8],[10,0,20,1]]}
[]
[null,"الصحة"]
[]
[]
[null,null,null,"             سيبكو للبيئة"]
[{"$f":"الادخال!B5","v":"مستشفى احد المسارحة العام"}]
[null,null,null,"فاتورة","   بدون",null,null,{"$f":"الادخال!N21","v":"أبريل 2019م"}]
[]
[]
[]
["بدون",null,null,"أكياس صفراء 10 جالون",null,"10ج",{"$f":"الادخال!L27","v":400},0.5,null,{"$f":"G11*H11","v":200}]
[null,null,null,"أكياس حمراء 10 جالون",null,"10ج",{"$f":"الادخال!L28","v":50},0.5,null,{"$f":"G12*H12","v":25}]
[null,null,null,"أكياس صفراء 30 جالون",null,"30ج",{"$f":"الادخال!L29","v":600},0.6,null,360]
[null,null,null,"أكياس حمراء 30 جالون",null,"30ج",{"$f":"الادخال!L30","v":50},0.6,null,30]
[null,null,null,"أكياس صفراء 50 جالون",null,"50ج",{"$f":"الادخال!L31","v":700},null,1,{"$f":"G15*I15","v":700}]
[null,null,null,"أكياس حمراء 50 جالون",null,"50ج",{"$f":"الادخال!L32","v":100},null,1,{"$f":"G16*I16","v":100}]
[null,null,null,"حاويات حادة 5 لتر",null,"5ل",{"$f":"الادخال!L33","v":30},null,6,180]
[null,null,null,"حاويات حادة 13 لتر",null,"12ل",{"$f":"الادخال!L34","v":75},null,10,750]
[null,null,null,"حاويات حادة 21 لتر",null,"21ل",{"$f":"الادخال!L35","v":75},null,20,1500]
[null,null,null,"حاوية الزئبق",null,"-",{"$f":"الادخال!L36","v":4},null,6,24]
[]
["ح.الجريبي",null,null,"؛"]
[]
[]
[null,null,null,null,null,null,null,null,null,{"$f":"SUM(J11:J21)","v":3869}]
[]
[null,{"$f":"[1]الادخال!L25","v":"نورة راجح"},null,null,null,null,null,null,{"$f":"[1]الادخال!L18","v":"د/ عبدالرحمن حمدي "}]

{"sheet":"معالجة","index":10,"n_rows":24,"n_cols":30,"rows_kept":24,"cut":false,"hidden":false,"merged":[[14,4,14,20],[20,14,20,26],[23,14,23,26],[5,9,5,10],[5,15,5,17],[8,1,8,29],[9,0,9,30],[10,7,10,17],[10,0,10,6],[11,7,11,9],[12,0,12,29],[10,23,10,24],[11,10,11,30],[10,29,10,30],[10,26,10,27],[10,18,10,21],[2,1,2,2],[4,1,4,2],[2,3,2,5],[4,3,4,5],[11,1,11,2],[5,1,5,2]]}
[]
[]
[null,"التاريخ:",null,"2019-04-01",null,null,"هـ"]
[]
[null,"الموافق",null,"2019-04-01",null,null,"م"]
[]
[]
[]
[null,"شهــــادة إتمام معالجة"]
["      تشهد إدارة الشركة السعودية الخليجية لحماية البيئة ( سيبكو للبيئة ) بالمنطقة الجنوبية بأن النفايات  "]
[" الطبية الخطرة الصادرة من  ",null,null,null,null,null,null,{"$f":"الادخال!B5","v":"مستشفى احد المسارحة العام"},null,null,null,null,null,null,null,null,null,null,"للفترة من",null,null,null,":",{"$f":"الادخال!Q10","v":1},null,"/",{"$f":"الادخال!S10","v":4},null,"/",{"$f":"الادخال!U10","v":"2019م"}]
[null,"حتى:",null,{"$f":"الادخال!Z10","v":30},"/",{"$f":"الادخال!AB10","v":4},"/",{"$f":"الادخال!AD10","v":"2019م"},null,null,"قد تمت معالجتها وفقاً لشهادات التأهيل الممنوحة لمعالجة النفايات "]
["الطبية والمعتمدة من الرئاسة العامة للأرصاد وحماية البيئة ."]
[]
[null,null,null,null,"وعلية حررت هذه الشهادة للأهمية ،،،"]
[]
[]
[]
[]
[]
[null,null,null,null,null,null,null,null,null,null,null,null,null,null,"مدير تشغيل فرع جازان "]
[]
[]
[null,null,null,null,null,null,null,null,null,null,null,null,null,null,"عبدالله بن حسن الجريبي"]